[Event "94th Tradewise Hastings Congress"]
[Site "Hastings"]
[Date "2018.12.30"]
[Round "3"]
[White "Stefansson, Vignir Vatnar"]
[Black "Djuric, Stefan"]
[Result "1/2-1/2"]
[ECO "A43"]
[WhiteElo "2266"]
[BlackElo "2371"]
[Annotator "RC"]
[PlyCount "123"]
[EventDate "2018.12.28"]
[EventType "swiss"]
[EventCountry "ENG"]
[SourceTitle "playchess.com"]
[Source "ChessBase"]
[SourceQuality "1"]
[TimeControl "40/6000+30:3000+30"]

1. d4 {[%emt 0:00:00]} c5 {[%emt 0:00:00]} 2. d5 {[%emt 0:00:00]} g6 3. e4 {[%emt 0:00:52]} Bg7 {[%emt 0:00:07]} 4. Nc3 {[%emt 0:00:31]} d6 {[%emt 0:00:15]} 5. h3 {[%emt 0:03:41]} Nf6 {[%emt 0:02:34]} 6. Nf3 {[%emt 0:01:17]} O-O {[%emt 0:00:06]} 7. a4 {[%emt 0:01:44]} e6 {[%emt 0:07:52]} 8. Be2 {[%emt 0:01:02]} exd5 {[%emt 0:04:50]} 9. exd5 {[%emt 0:00:09]} Na6 {[%emt 0:00:26]} 10. O-O {[%emt 0:13:54]} Nc7 {[%emt 0:00:23]} 11. Bf4 {[%emt 0:27:22]} b6 {[%emt 0:03:02]} 12. Bc4 {[%emt 0:04:10]} a6 {[%emt 0:00:44]} 13. Bh2 {[%emt 0:02:02]} Rb8 {[%emt 0:00:36]} 14. Nd2 {[%emt 0:01:44]} b5 {[%emt 0:32:52]} 15. axb5 {[%emt 0:00:06]} axb5 {[%emt 0:00:03]} 16. Be2 {[%emt 0:00:07]} Nfe8 {[%emt 0:04:56]} 17. Rb1 {[%emt 0:01:35]} Bf5 {[%emt 0:05:39]} 18. Bf3 {[%emt 0:02:18]} Ra8 {[%emt 0:08:10]} 19. Re1 {[%emt 0:03:15]} b4 {[%emt 0:07:42]} 20. Nce4 {[%emt 0:00:17]} Nb5 {[%emt 0:00:04]} 21. Be2 {[%emt 0:08:53]} Nbc7 {[%emt 0:02:41]} 22. Bf3 {[%emt 0:01:58]} Nb5 {[%emt 0:01:08]} 23. Be2 {[%emt 0:07:01]} Nbc7 {[%emt 0:01:00]} 24. Bd3 Nxd5 {[%emt 0:10:42]} 25. Nc4 {[%emt 0:01:04]} Nb6 {[%emt 0:00:06]} 26. Ncxd6 {[%emt 0:02:10]} Nxd6 {[%emt 0:06:21]} 27. Nxd6 {[%emt 0:05:06]} Bxd3 {[%emt 0:01:28]} 28. Qxd3 {[%emt 0:00:17]} Na4 {[%emt 0:00:01]} 29. Qb3 {[%emt 0:01:09]} Nxb2 {[%emt 0:03:06]} 30. Qd5 {[%emt 0:09:22]} Bd4 {[%emt 0:03:27]} 31. Be5 {[%emt 0:01:52]} Bxe5 {[%emt 0:00:36]} 32. Qxe5 {[%emt 0:00:15]} Na4 {[%emt 0:00:27]} 33. Ne4 {[%emt 0:00:31]} Ra6 {[%emt 0:03:43]} 34. Rbd1 {[%emt 0:01:35]} Re6 {[%emt 0:00:01]} 35. Rxd8 {[%emt 0:04:28]} Rxe5 {[%emt 0:00:02]} 36. Nf6+ {[%emt 0:00:07]} Kg7 {[%emt 0:00:03]} 37. Ne8+ {[%emt 0:00:11]} Rfxe8 {[%emt 0:00:03]} 38. Rxe8 {[%emt 0:00:06]} Rd5 {[%emt 0:03:02]} 39. R8e5 {[%emt 0:01:33]} Rd4 {[%emt 0:00:34]} 40. Ra1 {[%emt 0:00:36]} Kf6 {[%emt 0:00:05]} 41. Re3 {[%emt 0:51:40]} Nc3 {[%emt 0:50:54]} 42. Ra7 {[%emt 0:00:18]} Rf4 {[%emt 0:00:36]} 43. g3 {[%emt 0:01:36]} Rf5 {[%emt 0:00:00]} 44. Kg2 Nb5 45. Rb7 {[%emt 0:00:00]} Nd4 {[%emt 0:00:00]} 46. c3 {[%emt 0:00:00]} bxc3 {[%emt 0:00:00]} 47. Rxc3 h5 {[%emt 0:00:00]} 48. Re3 {[%emt 0:00:00]} g5 {[%emt 0:00:00]} 49. Rc7 Ne6 {[%emt 0:00:00]} 50. Rc8 {[%emt 0:00:00]} Kg7 {[%emt 0:00:00]} 51. Re4 {[%emt 0:00:00]} Rd5 {[%emt 0:00:00]} 52. Ra8 {[%emt 0:00:00]} Rd3 {[%emt 0:00:00]} 53. Ra7 {[%emt 0:00:00]} Kg6 {[%emt 0:00:00]} 54. Re3 {[%emt 0:00:00]} Rd6 {[%emt 0:00:00]} 55. Rf3 {[%emt 0:00:00]} Rc6 {[%emt 0:00:00]} 56. Rfxf7 {[%emt 0:00:00]} c4 {[%emt 0:00:00]} 57. f4 {[%emt 0:00:00]} gxf4 {[%emt 0:00:00]} 58. gxf4 {[%emt 0:00:00]} Rc5 59. Kf3 {[%emt 0:00:00]} c3 {[%emt 0:04:09]} 60. f5+ {[%emt 0:00:00]} Rxf5+ {[%emt 0:01:19]} 61. Rxf5 {[%emt 0:00:00]} c2 62. Ra1 {[%emt 0:00:00]} 1/2-1/2

[Event "94th Tradewise Hastings Congress"]
[Site "Hastings"]
[Date "2018.12.30"]
[Round "3"]
[White "Moore, Graham J"]
[Black "Nettleton, Charlie B"]
[Result "1-0"]
[ECO "B39"]
[WhiteElo "2235"]
[BlackElo "2059"]
[Annotator "NA"]
[PlyCount "45"]
[EventDate "2018.12.28"]
[EventType "swiss"]
[EventCountry "ENG"]
[SourceTitle "playchess.com"]
[Source "ChessBase"]
[SourceQuality "1"]
[TimeControl "40/6000+30:3000+30"]

1. e4 {[%emt 0:58:46]} c5 {[%emt 1:05:32]} 2. Nf3 {[%emt 0:00:30]} g6 {[%emt 0:00:30]} 3. d4 {[%emt 0:00:30]} cxd4 {[%emt 0:00:30]} 4. Nxd4 {[%emt 0:00:30]} Nc6 {[%emt 0:00:30]} 5. c4 {[%emt 0:00:30]} Nf6 {[%emt 0:00:30]} 6. Nc3 {[%emt 0:00:30]} Bg7 {[%emt 0:00:30]} 7. Be3 {[%emt 0:00:30]} Ng4 {[%emt 0:00:30]} 8. Qxg4 {[%emt 0:00:30]} Nxd4 {[%emt 0:00:30]} 9. Qd1 {[%emt 0:00:30]} Ne6 {[%emt 0:00:30]} 10. Qd2 {[%emt 0:00:30]} b6 {[%emt 0:00:30]} 11. Be2 {[%emt 0:00:30]} Bb7 {[%emt 0:00:30]} 12. f4 {[%emt 0:00:30]} O-O {[%emt 0:00:30]} 13. f5 {[%emt 0:00:30]} Nc5 {[%emt 0:00:30]} 14. Bf3 {[%emt 0:00:30]} Bxc3 {[%emt 0:00:30]} 15. Qxc3 {[%emt 0:00:30]} Nxe4 {[%emt 0:00:30]} 16. Bxe4 {[%emt 0:00:30]} Bxe4 {[%emt 0:00:30]} 17. Bh6 {[%emt 0:00:30]} e5 {[%emt 0:00:30]} 18. O-O {[%emt 0:00:30]} Re8 {[%emt 0:00:30]} 19. f6 {[%emt 0:00:30]} d5 {[%emt 0:00:30]} 20. Qe3 {[%emt 0:00:30]} Qc7 {[%emt 0:00:30]} 21. Bf8 {[%emt 0:00:30]} Qxc4 {[%emt 0:00:30]} 22. Qh6 {[%emt 0:00:30]} Qd4+ {[%emt 0:00:30]} 23. Rf2 {[%emt 0:00:30]} 1-0

[Event "94th Tradewise Hastings Congress"]
[Site "Hastings"]
[Date "2018.12.30"]
[Round "3"]
[White "Willow, Jonah B"]
[Black "Sarkar, Justin"]
[Result "1-0"]
[ECO "C48"]
[WhiteElo "2218"]
[BlackElo "2332"]
[Annotator "NA"]
[PlyCount "67"]
[EventDate "2018.12.28"]
[EventType "swiss"]
[EventCountry "ENG"]
[SourceTitle "playchess.com"]
[Source "ChessBase"]
[SourceQuality "1"]
[TimeControl "40/6000+30:3000+30"]

1. e4 {[%emt 0:00:00]} e5 {[%emt 0:02:48]} 2. Nf3 {[%emt 0:00:00]} Nc6 {[%emt 0:00:05]} 3. Nc3 {[%emt 0:00:00]} Nf6 {[%emt 0:00:42]} 4. Bb5 {[%emt 0:00:02]} Bd6 {[%emt 0:00:21]} 5. d3 {[%emt 0:00:05]} a6 {[%emt 0:01:21]} 6. Ba4 {[%emt 0:00:04]} h6 {[%emt 0:02:23]} 7. a3 {[%emt 0:00:17]} b5 {[%emt 0:03:14]} 8. Bb3 {[%emt 0:00:06]} Bb7 {[%emt 0:00:58]} 9. Ne2 {[%emt 0:00:07]} O-O {[%emt 0:01:33]} 10. g4 {[%emt 0:06:03]} Be7 {[%emt 0:07:17]} 11. g5 {[%emt 0:03:29]} hxg5 {[%emt 0:00:08]} 12. Bxg5 {[%emt 0:00:35]} Na5 {[%emt 0:01:01]} 13. Rg1 {[%emt 0:28:21]} Nxb3 {[%emt 0:01:46]} 14. cxb3 {[%emt 0:00:27]} d5 {[%emt 0:06:51]} 15. Ng3 {[%emt 0:10:41]} dxe4 {[%emt 0:02:36]} 16. dxe4 {[%emt 0:01:15]} Nxe4 {[%emt 0:07:06]} 17. Bxe7 {[%emt 0:02:42]} Qxe7 {[%emt 0:01:03]} 18. Nf5 {[%emt 0:00:55]} Qf6 {[%emt 0:36:53]} 19. Rxg7+ {[%emt 0:01:25]} Qxg7 {[%emt 0:00:19]} 20. Nxg7 {[%emt 0:00:04]} Kxg7 {[%emt 0:00:08]} 21. Nh4 {[%emt 0:01:43]} Rh8 {[%emt 0:13:16]} 22. Qg4+ {[%emt 0:05:19]} Kf8 {[%emt 0:00:04]} 23. O-O-O {[%emt 0:02:31]} Nd6 {[%emt 0:01:55]} 24. Rg1 {[%emt 0:02:57]} Ke7 {[%emt 0:00:57]} 25. Nf5+ {[%emt 0:04:46]} Ke6 {[%emt 0:08:22]} 26. Nxd6+ {[%emt 0:12:53]} Kxd6 {[%emt 0:00:05]} 27. Rd1+ {[%emt 0:00:03]} Bd5 {[%emt 0:00:45]} 28. Qf3 {[%emt 0:00:27]} c6 {[%emt 0:00:25]} 29. Qf6+ {[%emt 0:02:54]} Kc5 {[%emt 0:02:52]} 30. b4+ {[%emt 0:00:15]} Kc4 {[%emt 0:00:58]} 31. Qxe5 {[%emt 0:00:21]} Kb3 {[%emt 0:00:57]} 32. Rxd5 {[%emt 0:01:54]} cxd5 {[%emt 0:00:06]} 33. Qxd5+ {[%emt 0:00:05]} Ka4 {[%emt 0:00:22]} 34. Qd1# {[%emt 0:00:03]} 1-0

[Event "94th Tradewise Hastings Congress"]
[Site "Hastings"]
[Date "2018.12.30"]
[Round "3"]
[White "Graham, David B"]
[Black "Groffen, Hans"]
[Result "0-1"]
[ECO "C10"]
[WhiteElo "2208"]
[BlackElo "2120"]
[Annotator "NA"]
[PlyCount "102"]
[EventDate "2018.12.28"]
[EventType "swiss"]
[EventCountry "ENG"]
[SourceTitle "playchess.com"]
[Source "ChessBase"]
[SourceQuality "1"]
[TimeControl "40/6000+30:3000+30"]

1. e4 {[%emt 0:00:00]} e6 {[%emt 0:00:00]} 2. d4 {[%emt 0:00:00]} d5 {[%emt 0:00:00]} 3. Nd2 {[%emt 0:00:00]} dxe4 {[%emt 0:00:01]} 4. Nxe4 {[%emt 0:00:00]} Nd7 {[%emt 0:00:06]} 5. Nf3 {[%emt 0:00:26]} Ngf6 {[%emt 0:00:06]} 6. Bd3 {[%emt 0:00:23]} c5 {[%emt 0:00:11]} 7. Nxf6+ {[%emt 0:01:17]} Nxf6 {[%emt 0:00:08]} 8. Be3 {[%emt 0:06:14]} cxd4 {[%emt 0:03:26]} 9. Bxd4 {[%emt 0:02:12]} Bd6 {[%emt 0:01:52]} 10. Bb5+ {[%emt 0:19:35]} Bd7 {[%emt 0:02:04]} 11. Bxf6 {[%emt 0:00:39]} gxf6 {[%emt 0:00:11]} 12. Bxd7+ {[%emt 0:00:49]} Qxd7 {[%emt 0:00:08]} 13. Qd4 {[%emt 0:01:51]} Be7 {[%emt 0:04:08]} 14. Qxd7+ {[%emt 0:08:26]} Kxd7 {[%emt 0:00:08]} 15. O-O-O+ {[%emt 0:00:12]} Kc7 {[%emt 0:00:16]} 16. Ne1 {[%emt 0:08:18]} f5 {[%emt 0:01:13]} 17. f4 {[%emt 0:03:35]} Bf6 {[%emt 0:01:28]} 18. Nf3 {[%emt 0:01:01]} Rhg8 {[%emt 0:01:58]} 19. g3 {[%emt 0:07:05]} Rad8 {[%emt 0:01:08]} 20. Rxd8 {[%emt 0:00:19]} Rxd8 {[%emt 0:00:14]} 21. Re1 {[%emt 0:02:07]} Rd5 {[%emt 0:01:29]} 22. Re3 {[%emt 0:01:31]} Kc6 {[%emt 0:02:20]} 23. c3 {[%emt 0:03:02]} a5 {[%emt 0:02:21]} 24. Kc2 {[%emt 0:00:49]} b5 {[%emt 0:00:53]} 25. Rd3 {[%emt 0:09:06]} Rc5 {[%emt 0:02:09]} 26. Nd4+ {[%emt 0:01:12]} Bxd4 {[%emt 0:01:31]} 27. Rxd4 {[%emt 0:00:04]} Kc7 {[%emt 0:00:22]} 28. Kd3 {[%emt 0:00:39]} Rc6 {[%emt 0:03:38]} 29. b3 {[%emt 0:14:03]} f6 {[%emt 0:02:39]} 30. a3 {[%emt 0:06:23]} Rd6 {[%emt 0:03:08]} 31. c4 {[%emt 0:10:12]} bxc4+ {[%emt 0:00:17]} 32. Kxc4 {[%emt 0:00:05]} Rxd4+ {[%emt 0:02:22]} 33. Kxd4 {[%emt 0:00:03]} Kd6 {[%emt 0:00:09]} 34. Kc4 {[%emt 0:00:28]} e5 {[%emt 0:01:43]} 35. b4 {[%emt 0:02:26]} axb4 {[%emt 0:00:05]} 36. Kxb4 {[%emt 0:00:14]} e4 {[%emt 0:00:08]} 37. Kc4 {[%emt 0:00:08]} h5 {[%emt 0:00:15]} 38. Kd4 {[%emt 0:00:29]} Kc6 {[%emt 0:00:13]} 39. h3 {[%emt 0:00:12]} Kb5 {[%emt 0:00:26]} 40. g4 {[%emt 0:02:10]} fxg4 {[%emt 0:00:43]} 41. hxg4 {[%emt 0:50:04]} hxg4 {[%emt 0:50:10]} 42. Kxe4 {[%emt 0:01:07]} f5+ {[%emt 0:00:13]} 43. Kxf5 {[%emt 0:00:03]} g3 {[%emt 0:00:05]} 44. Ke6 {[%emt 0:00:07]} g2 {[%emt 0:00:07]} 45. f5 {[%emt 0:00:02]} g1=Q {[%emt 0:00:07]} 46. f6 {[%emt 0:00:06]} Qg8+ {[%emt 0:00:22]} 47. Ke7 {[%emt 0:00:07]} Kc6 {[%emt 0:00:37]} 48. f7 {[%emt 0:00:10]} Qg5+ {[%emt 0:00:47]} 49. Ke8 {[%emt 0:00:13]} Qe5+ {[%emt 0:00:13]} 50. Kf8 {[%emt 0:00:10]} Kd7 {[%emt 0:00:17]} 51. Kg8 {[%emt 0:00:06]} Qg5+ {[%emt 0:00:16]} 0-1

[Event "94th Tradewise Hastings Congress"]
[Site "Hastings"]
[Date "2018.12.30"]
[Round "3"]
[White "Royset, Pal"]
[Black "Willson, Ollie"]
[Result "1/2-1/2"]
[ECO "B04"]
[WhiteElo "2182"]
[BlackElo "2081"]
[Annotator "ChessBase"]
[PlyCount "119"]
[EventDate "2018.12.28"]
[EventType "swiss"]
[EventCountry "ENG"]
[SourceTitle "playchess.com"]
[Source "ChessBase"]
[SourceQuality "1"]
[TimeControl "40/6000+30:3000+30"]

1. e4 {[%emt 0:00:00]} Nf6 {[%emt 0:00:00]} 2. e5 {[%emt 0:00:56]} Nd5 {[%emt 0:00:00]} 3. d4 {[%emt 0:01:03]} d6 {[%emt 0:00:13]} 4. Nf3 {[%emt 0:00:29]} dxe5 {[%emt 0:00:15]} 5. Nxe5 {[%emt 0:01:04]} Nd7 {[%emt 0:01:01]} 6. Nxd7 {[%emt 0:02:59]} Bxd7 {[%emt 0:07:23]} 7. c4 {[%emt 0:04:51]} Nf6 {[%emt 0:01:58]} 8. Nc3 {[%emt 0:02:36]} c6 {[%emt 0:08:56]} 9. Be2 {[%emt 0:03:20]} g6 {[%emt 0:07:15]} 10. Be3 {[%emt 0:03:53]} Bg7 {[%emt 0:00:14]} 11. h3 {[%emt 0:01:09]} O-O {[%emt 0:08:06]} 12. Qd2 {[%emt 0:07:28]} Be6 {[%emt 0:11:29]} 13. O-O {[%emt 0:02:11]} Ne8 {[%emt 0:07:34]} 14. Rfd1 {[%emt 0:08:56]} Nd6 {[%emt 0:03:40]} 15. d5 {[%emt 0:03:05]} cxd5 {[%emt 0:06:13]} 16. cxd5 {[%emt 0:01:01]} Bd7 {[%emt 0:02:58]} 17. Bd4 {[%emt 0:02:57]} Bxd4 {[%emt 0:09:58]} 18. Qxd4 {[%emt 0:00:21]} Qb6 {[%emt 0:00:03]} 19. Qxb6 {[%emt 0:04:40]} axb6 {[%emt 0:00:04]} 20. Rd4 {[%emt 0:00:24]} Ra5 {[%emt 0:01:58]} 21. Rb4 {[%emt 0:01:02]} b5 {[%emt 0:01:20]} 22. Re1 {[%emt 0:02:06]} Rc8 {[%emt 0:00:56]} 23. Bd3 {[%emt 0:02:37]} Kf8 {[%emt 0:01:26]} 24. a3 {[%emt 0:05:23]} Nc4 {[%emt 0:06:12]} 25. Bxc4 {[%emt 0:03:20]} Rxc4 {[%emt 0:00:10]} 26. Re4 {[%emt 0:00:52]} Rc5 {[%emt 0:02:14]} 27. Re3 {[%emt 0:05:28]} Rc4 28. g4 {[%emt 0:10:16]} Rxb4 {[%emt 0:09:12]} 29. axb4 {[%emt 0:00:06]} Ra1+ {[%emt 0:01:03]} 30. Kg2 {[%emt 0:00:11]} Rc1 {[%emt 0:00:38]} 31. Kf3 {[%emt 0:01:11]} b6 {[%emt 0:03:40]} 32. Kf4 {[%emt 0:01:19]} h6 {[%emt 0:00:52]} 33. Ke4 {[%emt 0:07:24]} Rf1 {[%emt 0:03:14]} 34. Rf3 {[%emt 0:01:59]} Ke8 {[%emt 0:02:46]} 35. Kd4 {[%emt 0:02:52]} Rc1 {[%emt 0:00:33]} 36. Re3 {[%emt 0:00:35]} Kd8 {[%emt 0:01:16]} 37. Kd3 {[%emt 0:09:49]} Rh1 {[%emt 0:00:31]} 38. Kd2 {[%emt 0:03:34]} h5 {[%emt 0:00:33]} 39. Rg3 {[%emt 0:00:34]} hxg4 {[%emt 0:02:17]} 40. hxg4 {[%emt 0:00:04]} Rh4 {[%emt 0:00:45]} 41. Ke3 {[%emt 0:54:07]} Bxg4 {[%emt 0:14:45]} 42. Nxb5 {[%emt 0:00:00]} Bd7 {[%emt 0:01:17]} 43. Nd4 {[%emt 0:00:00]} Kc7 {[%emt 0:02:13]} 44. f4 {[%emt 0:00:00]} Kd6 {[%emt 0:02:48]} 45. Nf3 {[%emt 0:00:00]} Rh1 {[%emt 0:02:57]} 46. Ne5 {[%emt 0:00:00]} Be8 {[%emt 0:00:55]} 47. Kd4 {[%emt 0:00:00]} Rd1+ {[%emt 0:02:53]} 48. Rd3 {[%emt 0:00:00]} Rxd3+ {[%emt 0:06:02]} 49. Nxd3 {[%emt 0:00:00]} f6 {[%emt 0:02:22]} 50. Nf2 {[%emt 0:00:00]} e5+ {[%emt 0:00:58]} 51. dxe6 {[%emt 0:00:00]} Kxe6 {[%emt 0:00:07]} 52. Ne4 {[%emt 0:00:00]} Bc6 {[%emt 0:01:07]} 53. Nc3 {[%emt 0:00:00]} g5 {[%emt 0:05:04]} 54. b5 {[%emt 0:00:00]} Bd7 {[%emt 0:03:13]} 55. fxg5 {[%emt 0:00:00]} fxg5 {[%emt 0:00:05]} 56. Nd5 {[%emt 0:00:00]} g4 {[%emt 0:01:21]} 57. Nxb6 {[%emt 0:00:00]} g3 {[%emt 0:02:33]} 58. Ke3 {[%emt 0:00:00]} Bxb5 {[%emt 0:00:15]} 59. Kf3 {[%emt 0:00:00]} Kd6 {[%emt 0:00:42]} 60. Kxg3 {Kd5} 1/2-1/2

[Event "94th Tradewise Hastings Congress"]
[Site "Hastings"]
[Date "2018.12.30"]
[Round "3"]
[White "Anderson, John"]
[Black "Trevelyan, John"]
[Result "1-0"]
[ECO "C66"]
[WhiteElo "2163"]
[BlackElo "1996"]
[Annotator "NA"]
[PlyCount "84"]
[EventDate "2018.12.28"]
[EventType "swiss"]
[EventCountry "ENG"]
[SourceTitle "playchess.com"]
[Source "ChessBase"]
[SourceQuality "1"]
[TimeControl "40/6000+30:3000+30"]

1. e4 {[%emt 0:00:00]} d6 {[%emt 0:00:00]} 2. d4 {[%emt 0:00:00]} e5 {[%emt 0:00:00]} 3. Nf3 {[%emt 0:00:43]} Nc6 {[%emt 0:00:00]} 4. Bb5 {[%emt 0:00:21]} Bd7 {[%emt 0:00:01]} 5. Nc3 {[%emt 0:00:24]} Nf6 {[%emt 0:00:14]} 6. O-O {[%emt 0:01:48]} exd4 {[%emt 0:01:49]} 7. Nxd4 {[%emt 0:00:11]} Nxd4 {[%emt 0:00:39]} 8. Qxd4 {[%emt 0:00:41]} Be7 {[%emt 0:01:21]} 9. b3 {[%emt 0:05:31]} O-O {[%emt 0:09:25]} 10. Bb2 {[%emt 0:02:29]} Bxb5 {[%emt 0:04:31]} 11. Nxb5 {[%emt 0:00:03]} Ne8 {[%emt 0:00:55]} 12. f4 {[%emt 0:02:25]} c6 {[%emt 0:14:25]} 13. Na3 {[%emt 0:02:22]} Bf6 {[%emt 0:01:40]} 14. e5 {[%emt 0:00:03]} dxe5 {[%emt 0:00:18]} 15. fxe5 {[%emt 0:00:05]} Qxd4+ {[%emt 0:00:37]} 16. Bxd4 {[%emt 0:00:02]} Be7 {[%emt 0:00:26]} 17. Nc4 {[%emt 0:00:56]} b6 {[%emt 0:04:19]} 18. a4 {[%emt 0:21:28]} Nc7 {[%emt 0:02:24]} 19. Rad1 {[%emt 0:04:35]} Rfd8 {[%emt 0:03:27]} 20. Bf2 {[%emt 0:06:42]} Rd5 {[%emt 0:05:54]} 21. Bg3 {[%emt 0:08:13]} Rad8 {[%emt 0:02:24]} 22. Nd6 {[%emt 0:04:40]} Rxd1 {[%emt 0:20:09]} 23. Rxd1 {[%emt 0:00:34]} Bxd6 {[%emt 0:00:35]} 24. Rxd6 {[%emt 0:03:14]} Ne6 {[%emt 0:05:20]} 25. Rxc6 {[%emt 0:03:01]} g5 {[%emt 0:00:09]} 26. Rd6 {[%emt 0:04:42]} Rxd6 {[%emt 0:01:42]} 27. exd6 {[%emt 0:00:03]} Kf8 {[%emt 0:00:12]} 28. Be5 {[%emt 0:06:12]} f5 {[%emt 0:03:00]} 29. Kf2 {[%emt 0:13:21]} Ke8 {[%emt 0:00:07]} 30. Ke3 {[%emt 0:00:50]} Kd7 {[%emt 0:00:11]} 31. Kd3 {[%emt 0:04:23]} Kc6 {[%emt 0:00:47]} 32. Kc4 {[%emt 0:01:33]} a6 {[%emt 0:04:46]} 33. d7 {[%emt 0:00:55]} Kxd7 {[%emt 0:01:37]} 34. Kd5 {[%emt 0:00:03]} h5 {[%emt 0:03:24]} 35. b4 {[%emt 0:01:30]} g4 {[%emt 0:02:11]} 36. c4 {[%emt 0:03:29]} h4 {[%emt 0:02:20]} 37. c5 {[%emt 0:02:13]} bxc5 {[%emt 0:01:28]} 38. bxc5 {[%emt 0:00:02]} Nd8 {[%emt 0:01:55]} 39. Bf6 {[%emt 0:02:54]} h3 {[%emt 0:01:04]} 40. gxh3 {[%emt 0:00:08]} gxh3 {[%emt 0:00:08]} 41. Bxd8 {[%emt 0:50:28]} Kxd8 {[%emt 0:50:16]} 42. Ke5 {[%emt 0:00:04]} Ke8 {[%emt 0:01:17]} 1-0

[Event "94th Tradewise Hastings Congress"]
[Site "Hastings"]
[Date "2018.12.30"]
[Round "3"]
[White "Byron, Alan M"]
[Black "Rice, Chris B"]
[Result "1-0"]
[ECO "C92"]
[WhiteElo "2157"]
[BlackElo "1963"]
[Annotator "NA"]
[PlyCount "73"]
[EventDate "2018.12.28"]
[EventType "swiss"]
[EventCountry "ENG"]
[SourceTitle "playchess.com"]
[Source "ChessBase"]
[SourceQuality "1"]
[TimeControl "40/6000+30:3000+30"]

1. e4 {[%emt 0:04:38]} e5 {[%emt 0:00:13]} 2. Nf3 {[%emt 0:00:08]} Nc6 {[%emt 0:00:26]} 3. Bb5 {[%emt 0:01:04]} a6 {[%emt 0:00:32]} 4. Ba4 {[%emt 0:00:07]} Nf6 {[%emt 0:00:44]} 5. O-O {[%emt 0:00:10]} Be7 {[%emt 0:00:15]} 6. Re1 {[%emt 0:00:21]} b5 {[%emt 0:00:31]} 7. Bb3 {[%emt 0:00:07]} O-O {[%emt 0:00:23]} 8. h3 {[%emt 0:00:48]} Bb7 {[%emt 0:01:10]} 9. d3 {[%emt 0:00:41]} d6 {[%emt 0:00:38]} 10. c3 {[%emt 0:00:06]} Na5 {[%emt 0:01:05]} 11. Bc2 {[%emt 0:00:07]} c5 {[%emt 0:00:08]} 12. Nbd2 {[%emt 0:00:20]} Re8 {[%emt 0:00:46]} 13. Nf1 {[%emt 0:00:28]} Bf8 {[%emt 0:05:28]} 14. Ng3 {[%emt 0:00:08]} g6 {[%emt 0:01:31]} 15. Bg5 {[%emt 0:03:11]} Bg7 {[%emt 0:02:06]} 16. Qd2 {[%emt 0:02:34]} Qc7 {[%emt 0:05:34]} 17. Bh6 {[%emt 0:19:31]} Bh8 {[%emt 0:09:43]} 18. b4 {[%emt 0:10:00]} Nc6 {[%emt 0:06:20]} 19. Bb3 {[%emt 0:02:04]} Nd8 {[%emt 0:15:41]} 20. Ng5 {[%emt 0:03:41]} Re7 {[%emt 0:23:02]} 21. Rad1 {[%emt 0:04:16]} Nc6 {[%emt 0:02:22]} 22. a3 {[%emt 0:26:32]} a5 {[%emt 0:00:47]} 23. Nf5 {[%emt 0:08:11]} Rd7 {[%emt 0:09:38]} 24. bxc5 {[%emt 0:05:23]} dxc5 {[%emt 0:01:52]} 25. Qe3 {[%emt 0:02:22]} Nd8 {[%emt 0:04:33]} 26. Nf3 {[%emt 0:01:10]} Ra6 {[%emt 0:02:35]} 27. a4 {[%emt 0:04:56]} bxa4 {[%emt 0:09:38]} 28. Bxa4 {[%emt 0:00:02]} Bc6 {[%emt 0:00:11]} 29. Bb3 {[%emt 0:02:59]} Bb5 {[%emt 0:00:11]} 30. d4 {[%emt 0:02:58]} exd4 {[%emt 0:00:23]} 31. cxd4 {[%emt 0:00:01]} c4 {[%emt 0:00:29]} 32. Ba2 {[%emt 0:00:33]} Ne6 {[%emt 0:02:12]} 33. d5 {[%emt 0:00:38]} Nc5 {[%emt 0:03:11]} 34. d6 {[%emt 0:00:56]} Qa7 {[%emt 0:00:47]} 35. Ne7+ {[%emt 0:00:51]} Rxe7 {[%emt 0:00:07]} 36. dxe7 {[%emt 0:00:05]} Qxe7 {[%emt 0:00:04]} 37. Bxc4 {[%emt 0:01:58]} 1-0

[Event "94th Tradewise Hastings Congress"]
[Site "Hastings"]
[Date "2018.12.30"]
[Round "3"]
[White "Taylor, Adam A"]
[Black "Boswell, Jacob Connor"]
[Result "1/2-1/2"]
[ECO "E05"]
[WhiteElo "2122"]
[BlackElo "1858"]
[Annotator "NA"]
[PlyCount "78"]
[EventDate "2018.12.28"]
[EventType "swiss"]
[EventCountry "ENG"]
[SourceTitle "playchess.com"]
[Source "ChessBase"]
[SourceQuality "1"]
[TimeControl "40/6000+30:3000+30"]

1. Nf3 {[%emt 0:00:00]} Nf6 {[%emt 0:00:00]} 2. g3 {[%emt 0:00:00]} d5 {[%emt 0:00:00]} 3. Bg2 {[%emt 0:00:00]} e6 {[%emt 0:00:00]} 4. O-O {[%emt 0:00:02]} Be7 {[%emt 0:00:00]} 5. c4 {[%emt 0:00:11]} O-O {[%emt 0:00:13]} 6. d4 {[%emt 0:01:11]} dxc4 {[%emt 0:00:09]} 7. Qa4 {[%emt 0:05:51]} a6 {[%emt 0:00:55]} 8. Qxc4 {[%emt 0:00:08]} b5 {[%emt 0:00:04]} 9. Qc2 {[%emt 0:00:57]} Bb7 {[%emt 0:00:07]} 10. Bd2 {[%emt 0:01:21]} Be4 {[%emt 0:00:50]} 11. Qc1 {[%emt 0:03:18]} c6 {[%emt 0:00:47]} 12. e3 {[%emt 0:12:38]} Nbd7 {[%emt 0:04:52]} 13. Nc3 {[%emt 0:02:48]} Bg6 {[%emt 0:08:07]} 14. Nh4 {[%emt 0:32:39]} Rc8 {[%emt 0:03:49]} 15. Nxg6 {[%emt 0:04:28]} hxg6 {[%emt 0:00:32]} 16. Qb1 {[%emt 0:05:58]} Qb6 {[%emt 0:19:30]} 17. b4 {[%emt 0:06:01]} e5 {[%emt 0:10:42]} 18. Ne2 {[%emt 0:05:53]} exd4 {[%emt 0:15:19]} 19. exd4 {[%emt 0:01:51]} Nd5 {[%emt 0:01:27]} 20. Qb3 {[%emt 0:01:19]} N7f6 {[%emt 0:04:05]} 21. Rad1 {[%emt 0:03:22]} Rfe8 {[%emt 0:01:30]} 22. Rfe1 {[%emt 0:00:28]} Bf8 {[%emt 0:01:14]} 23. a3 {[%emt 0:00:28]} Rcd8 {[%emt 0:00:47]} 24. Bf3 {[%emt 0:03:19]} Ne4 25. Qc2 {[%emt 0:09:33]} Nd6 {[%emt 0:04:39]} 26. Bg5 {[%emt 0:02:23]} Rd7 {[%emt 0:06:42]} 27. Nf4 {[%emt 0:05:27]} Rxe1+ {[%emt 0:00:31]} 28. Rxe1 {[%emt 0:00:05]} Nxf4 {[%emt 0:02:09]} 29. Bxf4 {[%emt 0:00:27]} Nc4 {[%emt 0:01:43]} 30. Qb3 {[%emt 0:02:17]} Rxd4 {[%emt 0:07:00]} 31. Re8 {[%emt 0:00:28]} c5 {[%emt 0:08:06]} 32. Be3 {[%emt 0:00:12]} Nxe3 {[%emt 0:05:30]} 33. Qxe3 {[%emt 0:00:04]} Qd6 {[%emt 0:00:10]} 34. bxc5 {[%emt 0:00:38]} Qxc5 {[%emt 0:00:05]} 35. Ra8 {[%emt 0:00:06]} Rc4 {[%emt 0:01:14]} 36. Qxc5 {[%emt 0:00:48]} Rxc5 {[%emt 0:00:08]} 37. Rxa6 {[%emt 0:01:08]} Rc3 {[%emt 0:00:05]} 38. Be2 {[%emt 0:00:19]} Rxa3 {[%emt 0:00:27]} 39. Bxb5 {[%emt 0:00:22]} Rxa6 {[%emt 0:00:25]} 1/2-1/2